[Event "Titled Tuesday Blitz November 15 Early 2022"]
[White "Cruz, Jonathan"]
[Black "Ivic, Velimir"]
[WhiteFideId "3802124"]
[BlackFideId "950122"]
[WhiteElo "2406"]
[BlackElo "2625"]
[Result "0-1"]
[Round "05"]
[TimeControl "180+1"]
[Date "2022.11.15"]
[WhiteClock "0:00:01"]
[BlackClock "0:00:17"]

1. e4 {[%clk 0:03:00]}  c5 {[%clk 0:02:57]} 2. Nf3 {[%clk 0:02:58]}  Nc6 {[%clk 0:02:57]} 3. Bb5 {[%clk 0:02:58]}  g6 {[%clk 0:02:56]} 4. O-O {[%clk 0:02:58]}  Bg7 {[%clk 0:02:55]} 5. Re1 {[%clk 0:02:58]}  e5 {[%clk 0:02:53]} 6. c3 {[%clk 0:02:58]}  Nge7 {[%clk 0:02:51]} 7. Na3 {[%clk 0:02:53]}  O-O {[%clk 0:02:46]} 8. d3 {[%clk 0:02:46]}  a6 {[%clk 0:02:37]} 9. Bc4 {[%clk 0:02:41]}  b5 {[%clk 0:02:34]} 10. Bd5 {[%clk 0:02:42]}  d6 {[%clk 0:02:21]} 11. Bg5 {[%clk 0:02:40]}  Bb7 {[%clk 0:02:22]} 12. d4 {[%clk 0:02:32]}  exd4 {[%clk 0:02:12]} 13. cxd4 {[%clk 0:02:31]}  c4 {[%clk 0:02:09]} 14. e5 {[%clk 0:01:50]}  dxe5 {[%clk 0:01:46]} 15. Bxc6 {[%clk 0:01:45]}  Bxc6 {[%clk 0:01:45]} 16. d5 {[%clk 0:01:22]}  f6 {[%clk 0:01:25]} 17. dxc6 {[%clk 0:01:09]}  fxg5 {[%clk 0:01:25]} 18. Qxd8 {[%clk 0:00:51]}  Raxd8 {[%clk 0:01:11]} 19. c7 {[%clk 0:00:46]}  Rd7 {[%clk 0:01:09]} 20. Nxg5 {[%clk 0:00:46]}  Rf6 {[%clk 0:00:54]} 21. Rxe5 {[%clk 0:00:36]}  Rxc7 {[%clk 0:00:54]} 22. Rae1 {[%clk 0:00:35]}  Rf5 {[%clk 0:00:43]} 23. Rxf5 {[%clk 0:00:15]}  gxf5 {[%clk 0:00:39]} 24. Ne6 {[%clk 0:00:14]}  Rd7 {[%clk 0:00:36]} 25. Nxg7 {[%clk 0:00:08]}  Kxg7 {[%clk 0:00:37]} 26. Nc2 {[%clk 0:00:07]}  Kf6 {[%clk 0:00:36]} 27. Ne3 {[%clk 0:00:04]}  Rd2 {[%clk 0:00:35]} 28. Rb1 {[%clk 0:00:02]}  Nc6 {[%clk 0:00:31]} 29. a4 {[%clk 0:00:02]}  Ne5 {[%clk 0:00:27]} 30. axb5 {[%clk 0:00:02]}  axb5 {[%clk 0:00:28]} 31. g3 {[%clk 0:00:01]}  Nd3 {[%clk 0:00:28]} 32. b3 {[%clk 0:00:01]}  c3 {[%clk 0:00:29]} 33. Nd5+ {[%clk 0:00:01]}  Kg5 {[%clk 0:00:20]} 34. Nxc3 {[%clk 0:00:02]}  Nxf2 {[%clk 0:00:20]} 35. Nxb5 {[%clk 0:00:03]}  Kg4 {[%clk 0:00:21]} 36. Rf1 {[%clk 0:00:01]}  Ne4 {[%clk 0:00:17]} 0-1


[Site "https://www.chess.com"]

[Event "Titled Tuesday Blitz November 15 Early 2022"]
[White "De Arruda, Leandro Formes"]
[Black "Petrova, Irina"]
[WhiteFideId "22722009"]
[BlackFideId "14124122"]
[WhiteElo "1880"]
[BlackElo "2023"]
[Result "0-1"]
[Round "05"]
[TimeControl "180+1"]
[Date "2022.11.16"]
[WhiteClock "0:00:07"]
[BlackClock "0:00:32"]

1. d4 {[%clk 0:03:00]}  d6 {[%clk 0:03:00]} 2. Nf3 {[%clk 0:03:00]}  g6 {[%clk 0:03:00]} 3. g3 {[%clk 0:03:01]}  Bg7 {[%clk 0:03:00]} 4. Bg2 {[%clk 0:03:02]}  Nf6 {[%clk 0:03:01]} 5. O-O {[%clk 0:03:03]}  O-O {[%clk 0:03:01]} 6. b3 {[%clk 0:03:03]}  Nc6 {[%clk 0:03:02]} 7. Bb2 {[%clk 0:03:04]}  Bf5 {[%clk 0:03:02]} 8. Nbd2 {[%clk 0:03:01]}  Ne4 {[%clk 0:03:01]} 9. Nxe4 {[%clk 0:03:00]}  Bxe4 {[%clk 0:03:02]} 10. c3 {[%clk 0:02:57]}  d5 {[%clk 0:03:01]} 11. a4 {[%clk 0:02:54]}  e5 {[%clk 0:02:58]} 12. dxe5 {[%clk 0:02:52]}  Nxe5 {[%clk 0:02:59]} 13. Nxe5 {[%clk 0:02:52]}  Bxg2 {[%clk 0:02:57]} 14. Kxg2 {[%clk 0:02:53]}  Bxe5 {[%clk 0:02:57]} 15. Qd3 {[%clk 0:02:48]}  c6 {[%clk 0:02:54]} 16. Rad1 {[%clk 0:02:47]}  Qb6 {[%clk 0:02:53]} 17. b4 {[%clk 0:02:29]}  a5 {[%clk 0:02:44]} 18. b5 {[%clk 0:02:23]}  Rad8 {[%clk 0:02:34]} 19. Ba3 {[%clk 0:02:19]}  Rfe8 {[%clk 0:02:32]} 20. c4 {[%clk 0:02:11]}  dxc4 {[%clk 0:02:17]} 21. Qxc4 {[%clk 0:02:12]}  cxb5 {[%clk 0:02:16]} 22. axb5 {[%clk 0:02:08]}  Bg7 {[%clk 0:01:37]} 23. e3 {[%clk 0:01:58]}  h5 {[%clk 0:01:25]} 24. Rd5 {[%clk 0:01:45]}  Rxd5 {[%clk 0:01:21]} 25. Qxd5 {[%clk 0:01:46]}  Re5 {[%clk 0:01:18]} 26. Qd7 {[%clk 0:01:37]}  Qxb5 {[%clk 0:01:10]} 27. Qd8+ {[%clk 0:01:34]}  Kh7 {[%clk 0:01:10]} 28. Bd6 {[%clk 0:01:05]}  Rf5 {[%clk 0:01:02]} 29. e4 {[%clk 0:00:57]}  Rf6 {[%clk 0:00:55]} 30. e5 {[%clk 0:00:43]}  Rf5 {[%clk 0:00:48]} 31. f4 {[%clk 0:00:41]}  Qd5+ {[%clk 0:00:42]} 32. Kh3 {[%clk 0:00:38]}  Bxe5 {[%clk 0:00:36]} 33. g4 {[%clk 0:00:10]}  hxg4+ {[%clk 0:00:34]} 34. Kxg4 {[%clk 0:00:09]}  Qg2+ {[%clk 0:00:32]} 35. Kh4 {[%clk 0:00:07]}  Rh5# {[%clk 0:00:32]} 0-1


[Site "https://www.chess.com"]

[Event "Titled Tuesday Blitz November 15 Early 2022"]
[White "Demin, Vladimir"]
[Black "Kryakvin, Dmitry"]
[WhiteFideId "4167457"]
[BlackFideId "4153278"]
[WhiteElo "2559"]
[BlackElo "2414"]
[Result "1-0"]
[Round "05"]
[TimeControl "180+1"]
[Date "2022.11.16"]
[WhiteClock "0:00:46"]
[BlackClock "0:00:33"]

1. d4 {[%clk 0:03:00]}  Nf6 {[%clk 0:02:50]} 2. Nc3 {[%clk 0:03:00]}  d5 {[%clk 0:02:48]} 3. Bf4 {[%clk 0:03:00]}  e6 {[%clk 0:02:47]} 4. e3 {[%clk 0:03:00]}  Bb4 {[%clk 0:02:47]} 5. a3 {[%clk 0:03:00]}  Bxc3+ {[%clk 0:02:47]} 6. bxc3 {[%clk 0:03:01]}  c5 {[%clk 0:02:44]} 7. c4 {[%clk 0:03:01]}  O-O {[%clk 0:02:40]} 8. Nf3 {[%clk 0:02:57]}  Ne4 {[%clk 0:02:38]} 9. Bd3 {[%clk 0:02:48]}  Qa5+ {[%clk 0:02:35]} 10. Nd2 {[%clk 0:02:48]}  cxd4 {[%clk 0:02:28]} 11. exd4 {[%clk 0:02:43]}  Nc6 {[%clk 0:02:27]} 12. O-O {[%clk 0:02:27]}  Nxd4 {[%clk 0:01:53]} 13. Nxe4 {[%clk 0:02:26]}  dxe4 {[%clk 0:01:50]} 14. Bxe4 {[%clk 0:02:27]}  e5 {[%clk 0:01:45]} 15. Qh5 {[%clk 0:02:21]}  f5 {[%clk 0:01:44]} 16. Bd5+ {[%clk 0:02:18]}  Be6 {[%clk 0:01:38]} 17. Bxe5 {[%clk 0:02:12]}  Bxd5 {[%clk 0:01:37]} 18. Bxd4 {[%clk 0:02:00]}  Bxc4 {[%clk 0:01:31]} 19. Rfe1 {[%clk 0:02:00]}  Rf7 {[%clk 0:01:27]} 20. Re5 {[%clk 0:01:54]}  Qd2 {[%clk 0:01:21]} 21. c3 {[%clk 0:01:49]}  Bd3 {[%clk 0:01:09]} 22. f3 {[%clk 0:01:24]}  f4 {[%clk 0:01:01]} 23. Rae1 {[%clk 0:01:21]}  Bg6 {[%clk 0:00:55]} 24. Re8+ {[%clk 0:01:00]}  Rf8 {[%clk 0:00:40]} 25. Qd5+ {[%clk 0:00:47]}  Kh8 {[%clk 0:00:33]} 26. Rxf8+ {[%clk 0:00:45]}  Rxf8 {[%clk 0:00:33]} 27. Bxg7+ {[%clk 0:00:46]} 1-0


[Site "https://www.chess.com"]

[Event "Titled Tuesday Blitz November 15 Early 2022"]
[White "Deuer, Marius"]
[Black "Guzman, Christopher"]
[WhiteFideId "16236432"]
[BlackFideId "6405096"]
[WhiteElo "2226"]
[BlackElo "2272"]
[Result "0-1"]
[Round "05"]
[TimeControl "180+1"]
[Date "2022.11.16"]
[WhiteClock "0:00:05"]
[BlackClock "0:01:23"]

1. d4 {[%clk 0:02:55]}  Nf6 {[%clk 0:02:57]} 2. Bg5 {[%clk 0:02:56]}  d5 {[%clk 0:02:57]} 3. Bxf6 {[%clk 0:02:54]}  gxf6 {[%clk 0:02:57]} 4. e3 {[%clk 0:02:54]}  Rg8 {[%clk 0:02:57]} 5. g3 {[%clk 0:02:53]}  c5 {[%clk 0:02:55]} 6. Nf3 {[%clk 0:02:51]}  Nc6 {[%clk 0:02:54]} 7. Bg2 {[%clk 0:02:50]}  Bg4 {[%clk 0:02:54]} 8. O-O {[%clk 0:02:46]}  cxd4 {[%clk 0:02:54]} 9. exd4 {[%clk 0:02:45]}  e6 {[%clk 0:02:54]} 10. c3 {[%clk 0:02:39]}  Qb6 {[%clk 0:02:51]} 11. Qb3 {[%clk 0:02:38]}  Qxb3 {[%clk 0:02:48]} 12. axb3 {[%clk 0:02:39]}  Bh6 {[%clk 0:02:47]} 13. b4 {[%clk 0:02:38]}  Kd7 {[%clk 0:02:44]} 14. b5 {[%clk 0:02:32]}  Ne7 {[%clk 0:02:44]} 15. Nbd2 {[%clk 0:02:33]}  Kc7 {[%clk 0:02:43]} 16. Ra3 {[%clk 0:02:31]}  Kb6 {[%clk 0:02:36]} 17. c4 {[%clk 0:01:51]}  Bxf3 {[%clk 0:02:26]} 18. c5+ {[%clk 0:01:49]}  Kxb5 {[%clk 0:02:26]} 19. Nxf3 {[%clk 0:01:50]}  Kc6 {[%clk 0:02:13]} 20. Rfa1 {[%clk 0:01:48]}  a6 {[%clk 0:02:13]} 21. b4 {[%clk 0:01:46]}  Rab8 {[%clk 0:02:13]} 22. Bf1 {[%clk 0:01:44]}  Kc7 {[%clk 0:02:13]} 23. b5 {[%clk 0:01:39]}  axb5 {[%clk 0:02:12]} 24. Bxb5 {[%clk 0:01:39]}  Bg7 {[%clk 0:02:03]} 25. Ra7 {[%clk 0:01:25]}  e5 {[%clk 0:01:45]} 26. Kg2 {[%clk 0:00:45]}  e4 {[%clk 0:01:44]} 27. Nd2 {[%clk 0:00:43]}  f5 {[%clk 0:01:44]} 28. Nb3 {[%clk 0:00:43]}  Rgd8 {[%clk 0:01:36]} 29. R1a6 {[%clk 0:00:12]}  Nc8 {[%clk 0:01:30]} 30. c6 {[%clk 0:00:09]}  Nxa7 {[%clk 0:01:30]} 31. Rxa7 {[%clk 0:00:10]}  Kb6 {[%clk 0:01:29]} 32. Ra5 {[%clk 0:00:04]}  bxc6 {[%clk 0:01:29]} 33. Be2 {[%clk 0:00:05]}  Kc7 {[%clk 0:01:28]} 34. Ra7+ {[%clk 0:00:04]}  Rb7 {[%clk 0:01:28]} 35. Ra3 {[%clk 0:00:04]}  Kd6 {[%clk 0:01:24]} 36. Nc5 {[%clk 0:00:04]}  Rc7 {[%clk 0:01:23]} 37. Ra6 {[%clk 0:00:04]}  Bxd4 {[%clk 0:01:23]} 38. Nb3 {[%clk 0:00:05]} 0-1


[Site "https://www.chess.com"]

[Event "Titled Tuesday Blitz November 15 Early 2022"]
[White "Dias, Joao Batista"]
[Black "Kaminski, Victor"]
[WhiteFideId "2108240"]
[BlackFideId "1131630"]
[WhiteElo "1898"]
[BlackElo "2181"]
[Result "0-1"]
[Round "05"]
[TimeControl "180+1"]
[Date "2022.11.16"]
[WhiteClock "0:01:40"]
[BlackClock "0:01:41"]

1. e4 {[%clk 0:03:00]}  c5 {[%clk 0:02:54]} 2. Nf3 {[%clk 0:02:59]}  Nc6 {[%clk 0:02:55]} 3. d4 {[%clk 0:02:59]}  cxd4 {[%clk 0:02:55]} 4. Nxd4 {[%clk 0:02:59]}  Nf6 {[%clk 0:02:56]} 5. Nc3 {[%clk 0:02:58]}  e5 {[%clk 0:02:56]} 6. Nxc6 {[%clk 0:02:57]}  dxc6 {[%clk 0:02:55]} 7. Qxd8+ {[%clk 0:02:56]}  Kxd8 {[%clk 0:02:55]} 8. Be3 {[%clk 0:02:56]}  Be6 {[%clk 0:02:52]} 9. O-O-O+ {[%clk 0:02:54]}  Kc7 {[%clk 0:02:53]} 10. Kb1 {[%clk 0:02:53]}  Ng4 {[%clk 0:02:46]} 11. Re1 {[%clk 0:02:37]}  Nxe3 {[%clk 0:02:43]} 12. Rxe3 {[%clk 0:02:36]}  Bc5 {[%clk 0:02:43]} 13. Rf3 {[%clk 0:02:30]}  f6 {[%clk 0:02:39]} 14. h3 {[%clk 0:02:28]}  Rad8 {[%clk 0:02:33]} 15. Bd3 {[%clk 0:02:27]}  h5 {[%clk 0:02:26]} 16. a3 {[%clk 0:02:25]}  a5 {[%clk 0:02:22]} 17. Rg3 {[%clk 0:02:20]}  Rd7 {[%clk 0:02:17]} 18. Rf1 {[%clk 0:02:20]}  b5 {[%clk 0:02:09]} 19. Ne2 {[%clk 0:02:09]}  b4 {[%clk 0:02:07]} 20. a4 {[%clk 0:02:06]}  b3 {[%clk 0:02:00]} 21. f4 {[%clk 0:01:53]}  bxc2+ {[%clk 0:01:49]} 22. Bxc2 {[%clk 0:01:53]}  Bc4 {[%clk 0:01:44]} 23. Re1 {[%clk 0:01:40]}  Bf2 {[%clk 0:01:41]} 0-1


[Site "https://www.chess.com"]

[Event "Titled Tuesday Blitz November 15 Early 2022"]
[White "Fedoseev, Vladimir"]
[Black "Narayanan, Srinath"]
[WhiteFideId "24130737"]
[BlackFideId "5018420"]
[WhiteElo "2726"]
[BlackElo "2459"]
[Result "1-0"]
[Round "05"]
[TimeControl "180+1"]
[Date "2022.11.15"]
[WhiteClock "0:00:39"]
[BlackClock "0:00:02"]

1. e4 {[%clk 0:02:54]}  e5 {[%clk 0:02:58]} 2. Nf3 {[%clk 0:02:53]}  Nc6 {[%clk 0:02:59]} 3. Bb5 {[%clk 0:02:52]}  a6 {[%clk 0:02:57]} 4. Bxc6 {[%clk 0:02:50]}  dxc6 {[%clk 0:02:58]} 5. O-O {[%clk 0:02:50]}  f6 {[%clk 0:02:57]} 6. d4 {[%clk 0:02:49]}  exd4 {[%clk 0:02:56]} 7. Nxd4 {[%clk 0:02:50]}  c5 {[%clk 0:02:57]} 8. Nb3 {[%clk 0:02:51]}  Qxd1 {[%clk 0:02:58]} 9. Rxd1 {[%clk 0:02:51]}  Be6 {[%clk 0:02:53]} 10. Nc3 {[%clk 0:02:49]}  Rd8 {[%clk 0:02:50]} 11. Bf4 {[%clk 0:02:48]}  Bd6 {[%clk 0:02:40]} 12. Bxd6 {[%clk 0:02:47]}  cxd6 {[%clk 0:02:41]} 13. Na5 {[%clk 0:02:45]}  Rd7 {[%clk 0:02:39]} 14. Na4 {[%clk 0:02:45]}  Ke7 {[%clk 0:02:32]} 15. Nb6 {[%clk 0:02:44]}  Rc7 {[%clk 0:02:32]} 16. Nac4 {[%clk 0:01:41]}  Rc6 {[%clk 0:02:14]} 17. Nd5+ {[%clk 0:01:39]}  Kd7 {[%clk 0:00:45]} 18. Na5 {[%clk 0:01:38]}  Bxd5 {[%clk 0:00:44]} 19. Rxd5 {[%clk 0:01:38]}  Rc7 {[%clk 0:00:39]} 20. Rad1 {[%clk 0:01:37]}  Ne7 {[%clk 0:00:39]} 21. Rxd6+ {[%clk 0:01:36]}  Kc8 {[%clk 0:00:40]} 22. Nc4 {[%clk 0:01:35]}  Nc6 {[%clk 0:00:38]} 23. c3 {[%clk 0:01:33]}  b5 {[%clk 0:00:36]} 24. Nb6+ {[%clk 0:01:27]}  Kb7 {[%clk 0:00:37]} 25. Nd7 {[%clk 0:01:19]}  c4 {[%clk 0:00:28]} 26. a4 {[%clk 0:01:12]}  Re8 {[%clk 0:00:25]} 27. axb5 {[%clk 0:01:09]}  axb5 {[%clk 0:00:24]} 28. f3 {[%clk 0:01:06]}  Ra8 {[%clk 0:00:20]} 29. R1d5 {[%clk 0:00:56]}  Ra5 {[%clk 0:00:20]} 30. Kf2 {[%clk 0:00:54]}  Kc8 {[%clk 0:00:12]} 31. Nc5 {[%clk 0:00:49]}  Ra2 {[%clk 0:00:03]} 32. Rd2 {[%clk 0:00:47]}  Kb8 {[%clk 0:00:02]} 33. Ne6 {[%clk 0:00:47]}  Rc8 {[%clk 0:00:02]} 34. Nxg7 {[%clk 0:00:47]}  Ne5 {[%clk 0:00:02]} 35. Rb6+ {[%clk 0:00:46]}  Ka7 {[%clk 0:00:02]} 36. Rxb5 {[%clk 0:00:46]}  Ka6 {[%clk 0:00:01]} 37. Rbd5 {[%clk 0:00:46]}  Nd3+ {[%clk 0:00:01]} 38. Ke3 {[%clk 0:00:45]}  Nxb2 {[%clk 0:00:01]} 39. Nf5 {[%clk 0:00:43]}  Rb8 {[%clk 0:00:02]} 40. Nd4 {[%clk 0:00:39]}  Ra3 {[%clk 0:00:02]} 41. Rd6+ {[%clk 0:00:39]}  Ka5 {[%clk 0:00:01]} 42. Nc6+ {[%clk 0:00:39]}  Ka4 {[%clk 0:00:02]} 43. Nxb8 {[%clk 0:00:39]} 1-0


[Site "https://www.chess.com"]

[Event "Titled Tuesday Blitz November 15 Early 2022"]
[White "Firouzja, Alireza"]
[Black "Willow, Jonah B"]
[WhiteFideId "12573981"]
[BlackFideId "438804"]
[WhiteElo "2903"]
[BlackElo "2300"]
[Result "1-0"]
[Round "05"]
[TimeControl "180+1"]
[Date "2022.11.15"]
[WhiteClock "0:02:10"]
[BlackClock "0:00:13"]

1. d4 {[%clk 0:02:56]}  Nf6 {[%clk 0:03:00]} 2. Bg5 {[%clk 0:02:55]}  e6 {[%clk 0:03:00]} 3. e4 {[%clk 0:02:54]}  h6 {[%clk 0:02:59]} 4. Bxf6 {[%clk 0:02:55]}  Qxf6 {[%clk 0:02:59]} 5. c3 {[%clk 0:02:55]}  d6 {[%clk 0:02:58]} 6. Bd3 {[%clk 0:02:55]}  Qg5 {[%clk 0:02:58]} 7. g3 {[%clk 0:02:45]}  e5 {[%clk 0:02:58]} 8. Nd2 {[%clk 0:02:43]}  g6 {[%clk 0:02:51]} 9. f4 {[%clk 0:02:38]}  Qe7 {[%clk 0:02:24]} 10. Ngf3 {[%clk 0:02:37]}  Bg7 {[%clk 0:02:24]} 11. dxe5 {[%clk 0:02:35]}  dxe5 {[%clk 0:02:24]} 12. f5 {[%clk 0:02:35]}  gxf5 {[%clk 0:02:17]} 13. exf5 {[%clk 0:02:35]}  e4 {[%clk 0:02:18]} 14. Bxe4 {[%clk 0:02:33]}  Bxf5 {[%clk 0:02:14]} 15. O-O {[%clk 0:02:29]}  Bxe4 {[%clk 0:02:11]} 16. Nxe4 {[%clk 0:02:30]}  O-O {[%clk 0:02:10]} 17. Qc2 {[%clk 0:02:26]}  Nc6 {[%clk 0:02:06]} 18. Nh4 {[%clk 0:02:26]}  Qe5 {[%clk 0:01:32]} 19. Nf5 {[%clk 0:02:18]}  Ne7 {[%clk 0:01:22]} 20. Nxg7 {[%clk 0:02:18]}  Qxg7 {[%clk 0:01:23]} 21. Nf6+ {[%clk 0:02:16]}  Kh8 {[%clk 0:01:24]} 22. Rae1 {[%clk 0:02:16]}  Ng6 {[%clk 0:01:14]} 23. Qf5 {[%clk 0:02:16]}  Rad8 {[%clk 0:01:01]} 24. Re4 {[%clk 0:02:16]}  Rd6 {[%clk 0:00:38]} 25. Ne8 {[%clk 0:02:15]}  Qh7 {[%clk 0:00:15]} 26. Nxd6 {[%clk 0:02:15]}  cxd6 {[%clk 0:00:16]} 27. Qf6+ {[%clk 0:02:14]}  Qg7 {[%clk 0:00:14]} 28. Qxg7+ {[%clk 0:02:10]}  Kxg7 {[%clk 0:00:15]} 29. Rd1 {[%clk 0:02:10]}  d5 {[%clk 0:00:13]} 30. Rxd5 {[%clk 0:02:10]} 1-0


[Site "https://www.chess.com"]

[Event "Titled Tuesday Blitz November 15 Early 2022"]
[White "Gabdrakhmanov, Azat"]
[Black "Fernandez Siles, Luis"]
[WhiteFideId "34189197"]
[BlackFideId "2209420"]
[WhiteElo "2254"]
[BlackElo "2186"]
[Result "1-0"]
[Round "05"]
[TimeControl "180+1"]
[Date "2022.11.16"]
[WhiteClock "0:01:04"]
[BlackClock "0:00:02"]

1. e4 {[%clk 0:03:00]}  c5 {[%clk 0:02:59]} 2. Nf3 {[%clk 0:03:01]}  Nc6 {[%clk 0:02:59]} 3. d4 {[%clk 0:03:01]}  cxd4 {[%clk 0:03:00]} 4. Nxd4 {[%clk 0:03:02]}  Nf6 {[%clk 0:03:01]} 5. Nc3 {[%clk 0:03:02]}  e5 {[%clk 0:03:01]} 6. Ndb5 {[%clk 0:03:03]}  d6 {[%clk 0:03:01]} 7. Bg5 {[%clk 0:03:03]}  a6 {[%clk 0:03:01]} 8. Na3 {[%clk 0:03:03]}  b5 {[%clk 0:03:00]} 9. Bxf6 {[%clk 0:03:02]}  gxf6 {[%clk 0:03:01]} 10. Nd5 {[%clk 0:03:03]}  f5 {[%clk 0:03:01]} 11. exf5 {[%clk 0:03:04]}  Bxf5 {[%clk 0:02:59]} 12. c3 {[%clk 0:03:04]}  Bg7 {[%clk 0:02:58]} 13. Nc2 {[%clk 0:03:05]}  Be6 {[%clk 0:02:56]} 14. g3 {[%clk 0:03:02]}  O-O {[%clk 0:02:30]} 15. Bg2 {[%clk 0:03:01]}  f5 {[%clk 0:02:31]} 16. f4 {[%clk 0:02:57]}  Ra7 {[%clk 0:02:23]} 17. O-O {[%clk 0:02:55]}  Kh8 {[%clk 0:02:22]} 18. Qh5 {[%clk 0:02:44]}  a5 {[%clk 0:01:58]} 19. Rad1 {[%clk 0:02:41]}  b4 {[%clk 0:01:48]} 20. Nce3 {[%clk 0:02:07]}  bxc3 {[%clk 0:01:40]} 21. bxc3 {[%clk 0:02:08]}  e4 {[%clk 0:01:36]} 22. g4 {[%clk 0:02:03]}  fxg4 {[%clk 0:01:21]} 23. Bxe4 {[%clk 0:01:59]}  Bg8 {[%clk 0:01:01]} 24. Nf5 {[%clk 0:01:30]}  Bf6 {[%clk 0:00:30]} 25. Kh1 {[%clk 0:01:26]}  Raf7 {[%clk 0:00:15]} 26. Nh6 {[%clk 0:01:21]}  Rg7 {[%clk 0:00:14]} 27. Nxg8 {[%clk 0:01:19]}  Rfxg8 {[%clk 0:00:13]} 28. Nxf6 {[%clk 0:01:18]}  Qxf6 {[%clk 0:00:11]} 29. Bxc6 {[%clk 0:01:18]}  Qxc3 {[%clk 0:00:11]} 30. Bg2 {[%clk 0:01:16]}  g3 {[%clk 0:00:11]} 31. h3 {[%clk 0:01:16]}  Qf6 {[%clk 0:00:06]} 32. Qd5 {[%clk 0:01:13]}  Qh6 {[%clk 0:00:05]} 33. Qxd6 {[%clk 0:01:12]}  Rg6 {[%clk 0:00:05]} 34. Qe5+ {[%clk 0:01:11]}  R6g7 {[%clk 0:00:06]} 35. Rd7 {[%clk 0:01:10]}  Qa6 {[%clk 0:00:01]} 36. Rxg7 {[%clk 0:01:08]}  Rxg7 {[%clk 0:00:02]} 37. f5 {[%clk 0:01:04]} 1-0


[Site "https://www.chess.com"]

[Event "Titled Tuesday Blitz November 15 Early 2022"]
[White "Garcia Ramos, Daniel"]
[Black "Baches Garcia, Guillermo"]
[WhiteFideId "32010311"]
[BlackFideId "2209764"]
[WhiteElo "2357"]
[BlackElo "2440"]
[Result "1-0"]
[Round "05"]
[TimeControl "180+1"]
[Date "2022.11.16"]
[WhiteClock "0:00:03"]
[BlackClock "0:00:09"]

1. e4 {[%clk 0:02:49]}  c5 {[%clk 0:02:59]} 2. Nf3 {[%clk 0:02:46]}  d6 {[%clk 0:03:00]} 3. d4 {[%clk 0:02:46]}  cxd4 {[%clk 0:03:01]} 4. Nxd4 {[%clk 0:02:46]}  Nf6 {[%clk 0:03:01]} 5. f3 {[%clk 0:02:46]}  e5 {[%clk 0:03:00]} 6. Nb3 {[%clk 0:02:47]}  a5 {[%clk 0:03:00]} 7. a4 {[%clk 0:02:45]}  d5 {[%clk 0:02:50]} 8. Bg5 {[%clk 0:02:36]}  d4 {[%clk 0:02:45]} 9. c3 {[%clk 0:02:33]}  Nc6 {[%clk 0:02:40]} 10. Bb5 {[%clk 0:02:22]}  h6 {[%clk 0:01:55]} 11. Bh4 {[%clk 0:02:07]}  Be7 {[%clk 0:01:30]} 12. O-O {[%clk 0:01:59]}  O-O {[%clk 0:01:23]} 13. Bf2 {[%clk 0:01:59]}  dxc3 {[%clk 0:01:16]} 14. Nxc3 {[%clk 0:01:59]}  Be6 {[%clk 0:01:16]} 15. Nc5 {[%clk 0:01:50]}  Bxc5 {[%clk 0:01:12]} 16. Bxc5 {[%clk 0:01:49]}  Qxd1 {[%clk 0:01:12]} 17. Rfxd1 {[%clk 0:01:45]}  Rfd8 {[%clk 0:01:12]} 18. Kf2 {[%clk 0:01:24]}  Nd4 {[%clk 0:01:10]} 19. Bb6 {[%clk 0:01:23]}  Rdc8 {[%clk 0:00:46]} 20. Bxd4 {[%clk 0:01:20]}  exd4 {[%clk 0:00:47]} 21. Rxd4 {[%clk 0:01:20]}  Rc5 {[%clk 0:00:42]} 22. Rad1 {[%clk 0:01:19]}  g5 {[%clk 0:00:42]} 23. Rd8+ {[%clk 0:01:13]}  Rxd8 {[%clk 0:00:42]} 24. Rxd8+ {[%clk 0:01:14]}  Kg7 {[%clk 0:00:42]} 25. Ke3 {[%clk 0:01:13]}  h5 {[%clk 0:00:28]} 26. Ra8 {[%clk 0:01:02]}  h4 {[%clk 0:00:21]} 27. h3 {[%clk 0:00:52]}  Nh5 {[%clk 0:00:21]} 28. Rxa5 {[%clk 0:00:30]}  Nf4 {[%clk 0:00:20]} 29. Kf2 {[%clk 0:00:24]}  Rc8 {[%clk 0:00:20]} 30. e5 {[%clk 0:00:16]}  Rd8 {[%clk 0:00:19]} 31. Ne4 {[%clk 0:00:14]}  Kg6 {[%clk 0:00:19]} 32. Be2 {[%clk 0:00:07]}  Rc8 {[%clk 0:00:15]} 33. Rc5 {[%clk 0:00:07]}  Rd8 {[%clk 0:00:14]} 34. b4 {[%clk 0:00:05]}  Rd4 {[%clk 0:00:13]} 35. Rb5 {[%clk 0:00:03]}  Bc4 {[%clk 0:00:11]} 36. Rb6+ {[%clk 0:00:03]}  Kg7 {[%clk 0:00:10]} 37. Bxc4 {[%clk 0:00:02]}  Rxc4 {[%clk 0:00:10]} 38. Rxb7 {[%clk 0:00:03]}  Rc2+ {[%clk 0:00:10]} 39. Ke3 {[%clk 0:00:04]}  Rxg2 {[%clk 0:00:09]} 40. Nd6 {[%clk 0:00:03]}  Ra2 {[%clk 0:00:08]} 41. Rxf7+ {[%clk 0:00:03]}  Kg6 {[%clk 0:00:07]} 42. Rf6+ {[%clk 0:00:03]}  Kg7 {[%clk 0:00:07]} 43. a5 {[%clk 0:00:03]}  Nd5+ {[%clk 0:00:06]} 44. Kd4 {[%clk 0:00:02]}  Nxf6 {[%clk 0:00:06]} 45. exf6+ {[%clk 0:00:03]}  Kxf6 {[%clk 0:00:06]} 46. Kc5 {[%clk 0:00:04]}  Ke6 {[%clk 0:00:06]} 47. Ne4 {[%clk 0:00:04]}  Kd7 {[%clk 0:00:06]} 48. Kb6 {[%clk 0:00:04]}  Rh2 {[%clk 0:00:05]} 49. Nxg5 {[%clk 0:00:04]}  Rb2 {[%clk 0:00:05]} 50. b5 {[%clk 0:00:04]}  Kd6 {[%clk 0:00:05]} 51. a6 {[%clk 0:00:05]}  Rc2 {[%clk 0:00:05]} 52. a7 {[%clk 0:00:05]}  Rc8 {[%clk 0:00:06]} 53. Ne4+ {[%clk 0:00:05]}  Kd7 {[%clk 0:00:06]} 54. Kb7 {[%clk 0:00:06]}  Rc7+ {[%clk 0:00:06]} 55. Kb6 {[%clk 0:00:05]}  Rc8 {[%clk 0:00:07]} 56. Ka6 {[%clk 0:00:03]}  Kc7 {[%clk 0:00:07]} 57. b6+ {[%clk 0:00:03]}  Kc6 {[%clk 0:00:07]} 58. b7 {[%clk 0:00:04]}  Rc7 {[%clk 0:00:08]} 59. b8=Q {[%clk 0:00:04]}  Rxa7+ {[%clk 0:00:09]} 60. Kxa7 {[%clk 0:00:03]} 1-0


[Site "https://www.chess.com"]